Workbook

Sheet My_PC
K2: 【My_PC 環境一覧】 | T2: =TODAY() -> 2022-05-14
D4: コンピュータ名 | K4: LAPTOP-P9609JQC
D5: ドメイン名 | K5: LAPTOP-P9609JQC
D6: ログインユーザ名 | K6: tsukuba_it
D7: OS名 | K7: Microsoft Windows 10 Pro10.0.19044 (64-bit)
D8: IPアドレス | K8: 192.168.3.7
D9: MACアドレス | K9: A8:7E:EA:81:F7:86
D10: Office_Version | K10: Office 2016(64-bit)
D11: 定義済フォント名一覧 | K11: Excel 2013
D12: 定義済プリンター名一覧
D13: 外字登録一覧
F14: on

Sheet Font_List
B1: 【定義済フォント名一覧表】 | C1: =TODAY() -> 2022-05-14
B5: フォント名 | C5: =MAX(A:A) -> 1135
A6: 1 | B6: BIZ UDPゴシック
A7: 2 | B7: BIZ UDP明朝 Medium
A8: 3 | B8: BIZ UDゴシック
A9: 4 | B9: BIZ UD明朝 Medium
A10: 5 | B10: EPSON Pゴシック W6
A11: 6 | B11: EPSON Pゴシック W7
A12: 7 | B12: EPSON ゴシック W6
A13: 8 | B13: EPSON ゴシック W7
A14: 9 | B14: EPSON 太角ゴシック体Ｂ
A15: 10 | B15: EPSON 太丸ゴシック体Ｂ
A16: 11 | B16: HGPｺﾞｼｯｸE
A17: 12 | B17: HGPｺﾞｼｯｸM
A18: 13 | B18: HGP教科書体
A19: 14 | B19: HGP行書体
A20: 15 | B20: HGP創英ﾌﾟﾚｾﾞﾝｽEB
A21: 16 | B21: HGP創英角ｺﾞｼｯｸUB
A22: 17 | B22: HGP創英角ﾎﾟｯﾌﾟ体
A23: 18 | B23: HGP明朝B
A24: 19 | B24: HGP明朝E
A25: 20 | B25: HGSｺﾞｼｯｸE
A26: 21 | B26: HGSｺﾞｼｯｸM
A27: 22 | B27: HGS教科書体
A28: 23 | B28: HGS行書体
A29: 24 | B29: HGS創英ﾌﾟﾚｾﾞﾝｽEB
A30: 25 | B30: HGS創英角ｺﾞｼｯｸUB
A31: 26 | B31: HGS創英角ﾎﾟｯﾌﾟ体
A32: 27 | B32: HGS明朝B
A33: 28 | B33: HGS明朝E
A34: 29 | B34: HGｺﾞｼｯｸE
A35: 30 | B35: HGｺﾞｼｯｸM
A36: 31 | B36: HG丸ｺﾞｼｯｸM-PRO
A37: 32 | B37: HG教科書体
A38: 33 | B38: HG行書体
A39: 34 | B39: HG正楷書体-PRO
A40: 35 | B40: HG創英ﾌﾟﾚｾﾞﾝｽEB
A41: 36 | B41: HG創英角ｺﾞｼｯｸUB
A42: 37 | B42: HG創英角ﾎﾟｯﾌﾟ体
A43: 38 | B43: HG明朝B
A44: 39 | B44: HG明朝E
A45: 40 | B45: Klee One
A46: 41 | B46: Klee One SemiBold
A47: 42 | B47: Meiryo UI
A48: 43 | B48: ＭＳ Ｐゴシック
A49: 44 | B49: ＭＳ Ｐ明朝
A50: 45 | B50: MS UI Gothic
A51: 46 | B51: ＭＳ ゴシック
A52: 47 | B52: ＭＳ 明朝
A53: 48 | B53: UD デジタル 教科書体 N-B
A54: 49 | B54: UD デジタル 教科書体 NK-B
A55: 50 | B55: UD デジタル 教科書体 NK-R
A56: 51 | B56: UD デジタル 教科書体 NP-B
A57: 52 | B57: UD デジタル 教科書体 NP-R
A58: 53 | B58: UD デジタル 教科書体 N-R
A59: 54 | B59: Yu Gothic UI
A60: 55 | B60: Yu Gothic UI Light
A61: 56 | B61: Yu Gothic UI Semibold
A62: 57 | B62: Yu Gothic UI Semilight
A63: 58 | B63: メイリオ
A64: 59 | B64: 游ゴシック
A65: 60 | B65: 游ゴシック Light
A66: 61 | B66: 游ゴシック Medium
A67: 62 | B67: 游明朝
A68: 63 | B68: 游明朝 Demibold
A69: 64 | B69: 游明朝 Light
A70: 65 | B70: Batang
A71: 66 | B71: BatangChe
A72: 67 | B72: DengXian
A73: 68 | B73: DengXian Light
A74: 69 | B74: Dotum
A75: 70 | B75: DotumChe
A76: 71 | B76: FangSong
A77: 72 | B77: Gulim
A78: 73 | B78: GulimChe
A79: 74 | B79: Gungsuh
A80: 75 | B80: GungsuhChe
A81: 76 | B81: KaiTi
A82: 77 | B82: Malgun Gothic
A83: 78 | B83: Malgun Gothic Semilight
A84: 79 | B84: Microsoft GothicNeo
A85: 80 | B85: Microsoft GothicNeo Light
A86: 81 | B86: Microsoft JhengHei
A87: 82 | B87: Microsoft JhengHei Light
A88: 83 | B88: Microsoft JhengHei UI
A89: 84 | B89: Microsoft JhengHei UI Light
A90: 85 | B90: Microsoft YaHei
A91: 86 | B91: Microsoft YaHei Light
A92: 87 | B92: Microsoft YaHei UI
A93: 88 | B93: Microsoft YaHei UI Light
A94: 89 | B94: MingLiU
A95: 90 | B95: MingLiU_HKSCS
A96: 91 | B96: MingLiU_HKSCS-ExtB
A97: 92 | B97: MingLiU-ExtB
A98: 93 | B98: Nanum Brush Script
A99: 94 | B99: Nanum Pen
A100: 95 | B100: NanumGothic
A101: 96 | B101: NanumGothicCoding
A102: 97 | B102: NanumGothicExtraBold
A103: 98 | B103: NanumMyeongjo
A104: 99 | B104: NanumMyeongjoExtraBold
A105: 100 | B105: NSimSun
A106: 101 | B106: PMingLiU
A107: 102 | B107: PMingLiU-ExtB
A108: 103 | B108: SimHei
A109: 104 | B109: SimSun
A110: 105 | B110: SimSun-ExtB
A111: 106 | B111: STCaiyun
A112: 107 | B112: STFangsong
A113: 108 | B113: STHupo
A114: 109 | B114: STKaiti
A115: 110 | B115: STXihei
A116: 111 | B116: STXingkai
A117: 112 | B117: STXinwei
A118: 113 | B118: STZhongsong
A119: 114 | B119: Abadi
A120: 115 | B120: Abadi Extra Light
A121: 116 | B121: Abel
A122: 117 | B122: Abril Fatface
A123: 118 | B123: Agency FB
A124: 119 | B124: Aharoni
A125: 120 | B125: Aldhabi
A126: 121 | B126: Alef
A127: 122 | B127: Aleo
A128: 123 | B128: Aleo Light
A129: 124 | B129: Algerian
A130: 125 | B130: Amasis MT Pro
A131: 126 | B131: Amasis MT Pro Black
A132: 127 | B132: Amasis MT Pro Light
A133: 128 | B133: Amasis MT Pro Medium
A134: 129 | B134: Amatic SC
A135: 130 | B135: Angsana New
A136: 131 | B136: AngsanaUPC
A137: 132 | B137: Anton
A138: 133 | B138: Aparajita
A139: 134 | B139: Arabic Typesetting
A140: 135 | B140: Aref Ruqaa
A141: 136 | B141: Arial
A142: 137 | B142: Arial Black
A143: 138 | B143: Arial Narrow
A144: 139 | B144: Arial Nova
A145: 140 | B145: Arial Nova Cond
A146: 141 | B146: Arial Nova Cond Light
A147: 142 | B147: Arial Nova Light
A148: 143 | B148: Arial Rounded MT Bold
A149: 144 | B149: Assistant
A150: 145 | B150: Assistant ExtraBold
A151: 146 | B151: Assistant ExtraLight
A152: 147 | B152: Assistant Light
A153: 148 | B153: Assistant SemiBold
A154: 149 | B154: Athiti
A155: 150 | B155: Athiti ExtraLight
A156: 151 | B156: Athiti Light
A157: 152 | B157: Athiti Medium
A158: 153 | B158: Athiti SemiBold
A159: 154 | B159: Avenir Next LT Pro
A160: 155 | B160: Avenir Next LT Pro Demi
A161: 156 | B161: Avenir Next LT Pro Light
A162: 157 | B162: Baguet Script
A163: 158 | B163: Bahnschrift
A164: 159 | B164: Bahnschrift Condensed
A165: 160 | B165: Bahnschrift Light
A166: 161 | B166: Bahnschrift Light Condensed
A167: 162 | B167: Bahnschrift Light SemiCondensed
A168: 163 | B168: Bahnschrift SemiBold
A169: 164 | B169: Bahnschrift SemiBold Condensed
A170: 165 | B170: Bahnschrift SemiBold SemiConden
A171: 166 | B171: Bahnschrift SemiCondensed
A172: 167 | B172: Bahnschrift SemiLight
A173: 168 | B173: Bahnschrift SemiLight Condensed
A174: 169 | B174: Bahnschrift SemiLight SemiConde
A175: 170 | B175: Barlow
A176: 171 | B176: Barlow Black
A177: 172 | B177: Barlow Condensed
A178: 173 | B178: Barlow Condensed Black
A179: 174 | B179: Barlow Condensed ExtraBold
A180: 175 | B180: Barlow Condensed ExtraLight
A181: 176 | B181: Barlow Condensed Light
A182: 177 | B182: Barlow Condensed Medium
A183: 178 | B183: Barlow Condensed SemiBold
A184: 179 | B184: Barlow Condensed Thin
A185: 180 | B185: Barlow ExtraBold
A186: 181 | B186: Barlow ExtraLight
A187: 182 | B187: Barlow Light
A188: 183 | B188: Barlow Medium
A189: 184 | B189: Barlow Semi Condensed
A190: 185 | B190: Barlow Semi Condensed Black
A191: 186 | B191: Barlow Semi Condensed ExLight
A192: 187 | B192: Barlow Semi Condensed ExtraBold
A193: 188 | B193: Barlow Semi Condensed Light
A194: 189 | B194: Barlow Semi Condensed Medium
A195: 190 | B195: Barlow Semi Condensed SemiBold
A196: 191 | B196: Barlow Semi Condensed Thin
A197: 192 | B197: Barlow SemiBold
A198: 193 | B198: Barlow Thin
A199: 194 | B199: Baskerville Old Face
A200: 195 | B200: Bauhaus 93
A201: 196 | B201: Bebas Neue
A202: 197 | B202: Bell MT
A203: 198 | B203: Bembo
... 937 more rows

Sheet ActivePrinter
B1: 【定義済プリンター一覧表】 | E1: =TODAY() -> 2022-05-14
C4: 現 在 | D4: EW-M5071FT Series(ネットワーク) on Ne03:
B5: 定義済プリンター名 | C5: ポート番号 | D5: Active Printer名（名前 on ポート番号:）
A6: 1 | B6: EPSON EW-M5071FT Series (FAX) | C6: Ne06 | D6: =IF(B6="","",B6&" on "&C6&":") -> EPSON EW-M5071FT Series (FAX) on Ne06:
A7: =A6+1 -> 2 | B7: EPSON391573 (EW-M670FT Series) | C7: Ne05 | D7: =IF(B7="","",B7&" on "&C7&":") -> EPSON391573 (EW-M670FT Series) on Ne05:
A8: =A7+1 -> 3 | B8: EPSONFB377C (EW-M5071FT Series) | C8: Ne04 | D8: EPSONFB377C (EW-M5071FT Series) on Ne04:
A9: 4 | B9: EW-M5071FT Series(ネットワーク) | C9: Ne03 | D9: EW-M5071FT Series(ネットワーク) on Ne03:
A10: 5 | B10: Fax | C10: Ne02 | D10: Fax on Ne02:
A11: 6 | B11: Microsoft Print to PDF | C11: Ne01 | D11: Microsoft Print to PDF on Ne01:
A12: 7 | B12: Microsoft XPS Document Writer | C12: Ne00 | D12: Microsoft XPS Document Writer on Ne00:
A13: 8 | B13: OneNote (Desktop) | D13: OneNote (Desktop) on :
A14: 9 | B14: OneNote for Windows 10 | C14: Ne08 | D14: OneNote for Windows 10 on Ne08:
A15: 10
A16: 11
A17: 12 | D17: =IF(B17="","",B17&" on "&C17&":") -> 
A18: 13 | D18: =IF(B18="","",B18&" on "&C18&":") -> 
A19: 14
A20: 15
A21: 16
A22: 17
A23: 18
A24: 19
A25: 20

Sheet 外字登録一覧表
B1: OKANO-PC | E1: 【外 字 登 録 一 覧 表】 | K1: =TODAY() -> 2022-05-14 | Q1: 691
Q2: 643
B3: =MAX(A:A) -> 1880 | F3: =文字イメージ作成!$K$2&"" ->  | K3: =COUNTIF(P:P,"○") -> 0 | M3: ↓ﾀﾞﾌﾞﾙｸﾘｯｸで選択
B4: SJIS | D4: JIS | F4: 漢字 | G4: JIS | I4: SJIS | K4: UNICODE | M4: 外字作成
B5: DEC | C5: HEX | D5: HEX | E5: DEC | G5: DEC | H5: HEX | I5: HEX | J5: DEC | K5: DEC | L5: HEX | M5: 入 | O5: 画 | P5: あ | Q5: 画像 容量
B6: 基本 | C6: DEC2HEX | D6: SJISTOJIS | E6: HEX2DEC | F6: CHAR | G6: CODE | H6: DEC2HEX | I6: SJIS_code | J6: HEX2DEC | K6: UNICODE | L6: DEC2HEX | M6: 力 | O6: 像 | P6: り
A7: =IF(D7="",A6,A6+1) -> 1 | B7: 61504 | C7: =DEC2HEX(B7) -> F040 | D7: =SJISTOJIS(C7) -> 7F21 | E7: =HEX2DEC(D7) -> 32545 | F7: =IFERROR(CHAR(E7),"範囲外") ->  | G7: =CODE(F7) -> 32545 | H7: =DEC2HEX(G7) -> 7F21 | I7: =SJIS_code(F7) -> F040 | J7: =HEX2DEC(I7) -> 61504 | K7: =IFERROR(_xludf.unicode(F7),"") ->  | L7: =IFERROR(DEC2HEX(K7),"") ->  | P7: =IF(AND(M7="",O7=""),"","○") ->  | Q7: 691
A8: 2 | B8: =B7+1 -> 61505 | C8: =DEC2HEX(B8) -> F041 | D8: =SJISTOJIS(C8) -> 7F22 | E8: =HEX2DEC(D8) -> 32546 | F8: =IFERROR(CHAR(E8),"範囲外") ->  | G8: =CODE(F8) -> 32546 | H8: =DEC2HEX(G8) -> 7F22 | I8: =SJIS_code(F8) -> F041 | J8: =HEX2DEC(I8) -> 61505 | K8: =IFERROR(_xludf.unicode(F8),"") ->  | L8: =IFERROR(DEC2HEX(K8),"") ->  | P8: =IF(AND(M8="",O8=""),"","○") ->  | Q8: 691
A9: 3 | B9: =B8+1 -> 61506 | C9: =DEC2HEX(B9) -> F042 | D9: =SJISTOJIS(C9) -> 7F23 | E9: 32547 | F9:  | G9: 32547 | H9: 7F23 | I9: =SJIS_code(F9) -> F042 | J9: 61506 | Q9: 691
A10: 4 | B10: 61507 | C10: F043 | D10: 7F24 | E10: 32548 | F10:  | G10: 32548 | H10: 7F24 | I10: F043 | J10: 61507 | Q10: 691
A11: 5 | B11: 61508 | C11: F044 | D11: 7F25 | E11: 32549 | F11:  | G11: 32549 | H11: 7F25 | I11: F044 | J11: 61508 | Q11: 691
A12: 6 | B12: 61509 | C12: F045 | D12: 7F26 | E12: 32550 | F12:  | G12: 32550 | H12: 7F26 | I12: F045 | J12: 61509 | Q12: 691
A13: 7 | B13: 61510 | C13: F046 | D13: 7F27 | E13: 32551 | F13:  | G13: 32551 | H13: 7F27 | I13: F046 | J13: 61510 | Q13: 691
A14: 8 | B14: 61511 | C14: F047 | D14: 7F28 | E14: 32552 | F14:  | G14: 32552 | H14: 7F28 | I14: F047 | J14: 61511 | Q14: 691
A15: 9 | B15: 61512 | C15: F048 | D15: 7F29 | E15: 32553 | F15:  | G15: 32553 | H15: 7F29 | I15: F048 | J15: 61512 | Q15: 691
A16: 10 | B16: 61513 | C16: F049 | D16: 7F2A | E16: 32554 | F16:  | G16: 32554 | H16: 7F2A | I16: F049 | J16: 61513 | Q16: 691
A17: 11 | B17: 61514 | C17: F04A | D17: 7F2B | E17: 32555 | F17:  | G17: 32555 | H17: 7F2B | I17: F04A | J17: 61514 | Q17: 691
A18: 12 | B18: 61515 | C18: F04B | D18: 7F2C | E18: 32556 | F18:  | G18: 32556 | H18: 7F2C | I18: F04B | J18: 61515 | Q18: 691
A19: 13 | B19: 61516 | C19: F04C | D19: 7F2D | E19: 32557 | F19:  | G19: 32557 | H19: 7F2D | I19: F04C | J19: 61516 | Q19: 691
A20: 14 | B20: 61517 | C20: F04D | D20: 7F2E | E20: 32558 | F20:  | G20: 32558 | H20: 7F2E | I20: F04D | J20: 61517 | Q20: 691
A21: 15 | B21: 61518 | C21: F04E | D21: 7F2F | E21: 32559 | F21:  | G21: 32559 | H21: 7F2F | I21: F04E | J21: 61518 | Q21: 691
A22: 16 | B22: 61519 | C22: F04F | D22: 7F30 | E22: 32560 | F22:  | G22: 32560 | H22: 7F30 | I22: F04F | J22: 61519 | Q22: 691
A23: 17 | B23: 61520 | C23: F050 | D23: 7F31 | E23: 32561 | F23:  | G23: 32561 | H23: 7F31 | I23: F050 | J23: 61520 | Q23: 691
A24: 18 | B24: 61521 | C24: F051 | D24: 7F32 | E24: 32562 | F24:  | G24: 32562 | H24: 7F32 | I24: F051 | J24: 61521 | Q24: 691
A25: 19 | B25: 61522 | C25: F052 | D25: 7F33 | E25: 32563 | F25:  | G25: 32563 | H25: 7F33 | I25: F052 | J25: 61522 | Q25: 691
A26: 20 | B26: 61523 | C26: F053 | D26: 7F34 | E26: 32564 | F26:  | G26: 32564 | H26: 7F34 | I26: F053 | J26: 61523 | Q26: 691
A27: 21 | B27: 61524 | C27: F054 | D27: 7F35 | E27: 32565 | F27:  | G27: 32565 | H27: 7F35 | I27: F054 | J27: 61524 | Q27: 691
A28: 22 | B28: 61525 | C28: F055 | D28: 7F36 | E28: 32566 | F28:  | G28: 32566 | H28: 7F36 | I28: F055 | J28: 61525 | Q28: 691
A29: 23 | B29: 61526 | C29: F056 | D29: 7F37 | E29: 32567 | F29:  | G29: 32567 | H29: 7F37 | I29: F056 | J29: 61526 | Q29: 691
A30: 24 | B30: 61527 | C30: F057 | D30: 7F38 | E30: 32568 | F30:  | G30: 32568 | H30: 7F38 | I30: F057 | J30: 61527 | Q30: 691
A31: 25 | B31: 61528 | C31: F058 | D31: 7F39 | E31: 32569 | F31:  | G31: 32569 | H31: 7F39 | I31: F058 | J31: 61528 | Q31: 691
A32: 26 | B32: 61529 | C32: F059 | D32: 7F3A | E32: 32570 | F32:  | G32: 32570 | H32: 7F3A | I32: F059 | J32: 61529 | Q32: 691
A33: 27 | B33: 61530 | C33: F05A | D33: 7F3B | E33: 32571 | F33:  | G33: 32571 | H33: 7F3B | I33: F05A | J33: 61530 | Q33: 691
A34: 28 | B34: 61531 | C34: F05B | D34: 7F3C | E34: 32572 | F34:  | G34: 32572 | H34: 7F3C | I34: F05B | J34: 61531 | Q34: 691
A35: 29 | B35: 61532 | C35: F05C | D35: 7F3D | E35: 32573 | F35:  | G35: 32573 | H35: 7F3D | I35: F05C | J35: 61532 | Q35: 691
A36: 30 | B36: 61533 | C36: F05D | D36: 7F3E | E36: 32574 | F36:  | G36: 32574 | H36: 7F3E | I36: F05D | J36: 61533 | Q36: 691
A37: 31 | B37: 61534 | C37: F05E | D37: 7F3F | E37: 32575 | F37:  | G37: 32575 | H37: 7F3F | I37: F05E | J37: 61534 | Q37: 691
A38: 32 | B38: 61535 | C38: F05F | D38: 7F40 | E38: 32576 | F38:  | G38: 32576 | H38: 7F40 | I38: F05F | J38: 61535 | Q38: 691
A39: 33 | B39: 61536 | C39: F060 | D39: 7F41 | E39: 32577 | F39:  | G39: 32577 | H39: 7F41 | I39: F060 | J39: 61536 | Q39: 691
A40: 34 | B40: 61537 | C40: F061 | D40: 7F42 | E40: 32578 | F40:  | G40: 32578 | H40: 7F42 | I40: F061 | J40: 61537 | Q40: 691
A41: 35 | B41: 61538 | C41: F062 | D41: 7F43 | E41: 32579 | F41:  | G41: 32579 | H41: 7F43 | I41: F062 | J41: 61538 | Q41: 691
A42: 36 | B42: 61539 | C42: F063 | D42: 7F44 | E42: 32580 | F42:  | G42: 32580 | H42: 7F44 | I42: F063 | J42: 61539 | Q42: 691
A43: 37 | B43: 61540 | C43: F064 | D43: 7F45 | E43: 32581 | F43:  | G43: 32581 | H43: 7F45 | I43: F064 | J43: 61540 | Q43: 691
A44: 38 | B44: 61541 | C44: F065 | D44: 7F46 | E44: 32582 | F44:  | G44: 32582 | H44: 7F46 | I44: F065 | J44: 61541 | Q44: 691
A45: 39 | B45: 61542 | C45: F066 | D45: 7F47 | E45: 32583 | F45:  | G45: 32583 | H45: 7F47 | I45: F066 | J45: 61542 | Q45: 691
A46: 40 | B46: 61543 | C46: F067 | D46: 7F48 | E46: 32584 | F46:  | G46: 32584 | H46: 7F48 | I46: F067 | J46: 61543 | Q46: 691
A47: 41 | B47: 61544 | C47: F068 | D47: 7F49 | E47: 32585 | F47:  | G47: 32585 | H47: 7F49 | I47: F068 | J47: 61544 | Q47: 691
A48: 42 | B48: 61545 | C48: F069 | D48: 7F4A | E48: 32586 | F48:  | G48: 32586 | H48: 7F4A | I48: F069 | J48: 61545 | Q48: 691
A49: 43 | B49: 61546 | C49: F06A | D49: 7F4B | E49: 32587 | F49:  | G49: 32587 | H49: 7F4B | I49: F06A | J49: 61546 | Q49: 691
A50: 44 | B50: 61547 | C50: F06B | D50: 7F4C | E50: 32588 | F50:  | G50: 32588 | H50: 7F4C | I50: F06B | J50: 61547 | Q50: 691
A51: 45 | B51: 61548 | C51: F06C | D51: 7F4D | E51: 32589 | F51:  | G51: 32589 | H51: 7F4D | I51: F06C | J51: 61548 | Q51: 691
A52: 46 | B52: 61549 | C52: F06D | D52: 7F4E | E52: 32590 | F52:  | G52: 32590 | H52: 7F4E | I52: F06D | J52: 61549 | Q52: 691
A53: 47 | B53: 61550 | C53: F06E | D53: 7F4F | E53: 32591 | F53:  | G53: 32591 | H53: 7F4F | I53: F06E | J53: 61550 | Q53: 691
A54: 48 | B54: 61551 | C54: F06F | D54: 7F50 | E54: 32592 | F54:  | G54: 32592 | H54: 7F50 | I54: F06F | J54: 61551 | Q54: 691
A55: 48 | B55: 61552 | C55: F070 | F55: 範囲外
A56: 49 | B56: 61553 | C56: F071 | D56: 7F52 | E56: 32594 | F56:  | G56: 32594 | H56: 7F52 | I56: F071 | J56: 61553 | K56: =IFERROR(_xludf.unicode(F56),"") ->  | Q56: 691
A57: 50 | B57: 61554 | C57: F072 | D57: 7F53 | E57: 32595 | F57:  | G57: 32595 | H57: 7F53 | I57: F072 | J57: 61554 | Q57: 691
A58: 51 | B58: 61555 | C58: F073 | D58: 7F54 | E58: 32596 | F58:  | G58: 32596 | H58: 7F54 | I58: F073 | J58: 61555 | Q58: 691
A59: 52 | B59: 61556 | C59: F074 | D59: 7F55 | E59: 32597 | F59:  | G59: 32597 | H59: 7F55 | I59: F074 | J59: 61556 | Q59: 691
A60: 53 | B60: 61557 | C60: F075 | D60: 7F56 | E60: 32598 | F60:  | G60: 32598 | H60: 7F56 | I60: F075 | J60: 61557 | Q60: 691
A61: 54 | B61: 61558 | C61: F076 | D61: 7F57 | E61: 32599 | F61:  | G61: 32599 | H61: 7F57 | I61: F076 | J61: 61558 | Q61: 691
A62: 55 | B62: 61559 | C62: F077 | D62: 7F58 | E62: 32600 | F62:  | G62: 32600 | H62: 7F58 | I62: F077 | J62: 61559 | Q62: 691
A63: 56 | B63: 61560 | C63: F078 | D63: 7F59 | E63: 32601 | F63:  | G63: 32601 | H63: 7F59 | I63: F078 | J63: 61560 | Q63: 691
A64: 57 | B64: 61561 | C64: F079 | D64: 7F5A | E64: 32602 | F64:  | G64: 32602 | H64: 7F5A | I64: F079 | J64: 61561 | Q64: 691
A65: 58 | B65: 61562 | C65: F07A | D65: 7F5B | E65: 32603 | F65:  | G65: 32603 | H65: 7F5B | I65: F07A | J65: 61562 | Q65: 691
A66: 59 | B66: 61563 | C66: F07B | D66: 7F5C | E66: 32604 | F66:  | G66: 32604 | H66: 7F5C | I66: F07B | J66: 61563 | Q66: 691
A67: 60 | B67: 61564 | C67: F07C | D67: 7F5D | E67: 32605 | F67:  | G67: 32605 | H67: 7F5D | I67: F07C | J67: 61564 | Q67: 691
A68: 61 | B68: 61565 | C68: F07D | D68: 7F5E | E68: 32606 | F68:  | G68: 32606 | H68: 7F5E | I68: F07D | J68: 61565 | Q68: 691
A69: 62 | B69: 61566 | C69: F07E | D69: 7F5F | E69: 32607 | F69:  | G69: 32607 | H69: 7F5F | I69: F07E | J69: 61566 | Q69: 691
A70: 63 | B70: 61567 | C70: F07F | D70: =SJISTOJIS(C70) -> 7F60 | E70: 32608 | F70:  | G70: 32608 | H70: 7F60 | I70: F080 | J70: 61568 | Q70: 691
A71: =IF(D71="",A70,A70+1) -> 64 | B71: 61568 | C71: F080 | D71: =SJISTOJIS(C71) -> 7F60 | E71: 32608 | F71:  | G71: 32608 | H71: 7F60 | I71: F080 | J71: 61568 | Q71: 691
A72: 65 | B72: 61569 | C72: F081 | D72: =SJISTOJIS(C72) -> 7F61 | E72: =HEX2DEC(D72) -> 32609 | F72: =IFERROR(CHAR(E72),"範囲外") ->  | G72: =CODE(F72) -> 32609 | H72: =DEC2HEX(G72) -> 7F61 | I72: =SJIS_code(F72) -> F081 | J72: =HEX2DEC(I72) -> 61569 | L72: =IFERROR(DEC2HEX(K72),"") ->  | P72: =IF(AND(M72="",O72=""),"","○") ->  | Q72: 691
A73: 66 | B73: =B72+1 -> 61570 | C73: =DEC2HEX(B73) -> F082 | D73: 7F62 | E73: 32610 | F73:  | G73: 32610 | H73: 7F62 | I73: F082 | J73: 61570 | Q73: 691
A74: 67 | B74: 61571 | C74: F083 | D74: 7F63 | E74: 32611 | F74:  | G74: 32611 | H74: 7F63 | I74: F083 | J74: 61571 | Q74: 691
A75: 68 | B75: 61572 | C75: F084 | D75: 7F64 | E75: 32612 | F75:  | G75: 32612 | H75: 7F64 | I75: F084 | J75: 61572 | Q75: 691
A76: 69 | B76: 61573 | C76: F085 | D76: 7F65 | E76: 32613 | F76:  | G76: 32613 | H76: 7F65 | I76: F085 | J76: 61573 | Q76: 691
A77: 70 | B77: 61574 | C77: F086 | D77: 7F66 | E77: 32614 | F77:  | G77: 32614 | H77: 7F66 | I77: F086 | J77: 61574 | Q77: 691
A78: 71 | B78: 61575 | C78: F087 | D78: 7F67 | E78: 32615 | F78:  | G78: 32615 | H78: 7F67 | I78: F087 | J78: 61575 | Q78: 691
A79: 72 | B79: 61576 | C79: F088 | D79: 7F68 | E79: 32616 | F79:  | G79: 32616 | H79: 7F68 | I79: F088 | J79: 61576 | Q79: 691
A80: 73 | B80: 61577 | C80: F089 | D80: 7F69 | E80: 32617 | F80:  | G80: 32617 | H80: 7F69 | I80: F089 | J80: 61577 | Q80: 691
A81: 74 | B81: 61578 | C81: F08A | D81: 7F6A | E81: 32618 | F81:  | G81: 32618 | H81: 7F6A | I81: F08A | J81: 61578 | Q81: 691
A82: 75 | B82: 61579 | C82: F08B | D82: 7F6B | E82: 32619 | F82:  | G82: 32619 | H82: 7F6B | I82: F08B | J82: 61579 | Q82: 691
A83: 76 | B83: 61580 | C83: F08C | D83: 7F6C | E83: 32620 | F83:  | G83: 32620 | H83: 7F6C | I83: F08C | J83: 61580 | Q83: 691
A84: 77 | B84: 61581 | C84: F08D | D84: 7F6D | E84: 32621 | F84:  | G84: 32621 | H84: 7F6D | I84: F08D | J84: 61581 | Q84: 691
A85: 78 | B85: 61582 | C85: F08E | D85: 7F6E | E85: 32622 | F85:  | G85: 32622 | H85: 7F6E | I85: F08E | J85: 61582 | Q85: 691
A86: 79 | B86: 61583 | C86: F08F | D86: 7F6F | E86: 32623 | F86:  | G86: 32623 | H86: 7F6F | I86: F08F | J86: 61583 | Q86: 691
A87: 80 | B87: 61584 | C87: F090 | D87: 7F70 | E87: 32624 | F87:  | G87: 32624 | H87: 7F70 | I87: F090 | J87: 61584 | Q87: 691
A88: 81 | B88: 61585 | C88: F091 | D88: 7F71 | E88: 32625 | F88:  | G88: 32625 | H88: 7F71 | I88: F091 | J88: 61585 | Q88: 691
A89: 82 | B89: 61586 | C89: F092 | D89: 7F72 | E89: 32626 | F89:  | G89: 32626 | H89: 7F72 | I89: F092 | J89: 61586 | Q89: 691
A90: 83 | B90: 61587 | C90: F093 | D90: 7F73 | E90: 32627 | F90:  | G90: 32627 | H90: 7F73 | I90: F093 | J90: 61587 | Q90: 691
A91: 84 | B91: 61588 | C91: F094 | D91: 7F74 | E91: 32628 | F91:  | G91: 32628 | H91: 7F74 | I91: F094 | J91: 61588 | Q91: 691
A92: 85 | B92: 61589 | C92: F095 | D92: 7F75 | E92: 32629 | F92:  | G92: 32629 | H92: 7F75 | I92: F095 | J92: 61589 | Q92: 691
A93: 86 | B93: 61590 | C93: F096 | D93: 7F76 | E93: 32630 | F93:  | G93: 32630 | H93: 7F76 | I93: F096 | J93: 61590 | Q93: 691
A94: 87 | B94: 61591 | C94: F097 | D94: 7F77 | E94: 32631 | F94:  | G94: 32631 | H94: 7F77 | I94: F097 | J94: 61591 | Q94: 691
A95: 88 | B95: 61592 | C95: F098 | D95: 7F78 | E95: 32632 | F95:  | G95: 32632 | H95: 7F78 | I95: F098 | J95: 61592 | Q95: 691
A96: 89 | B96: 61593 | C96: F099 | D96: 7F79 | E96: 32633 | F96:  | G96: 32633 | H96: 7F79 | I96: F099 | J96: 61593 | Q96: 691
A97: 90 | B97: 61594 | C97: F09A | D97: 7F7A | E97: 32634 | F97:  | G97: 32634 | H97: 7F7A | I97: F09A | J97: 61594 | Q97: 691
A98: 91 | B98: 61595 | C98: F09B | D98: 7F7B | E98: 32635 | F98:  | G98: 32635 | H98: 7F7B | I98: F09B | J98: 61595 | Q98: 691
A99: 92 | B99: 61596 | C99: F09C | D99: 7F7C | E99: 32636 | F99:  | G99: 32636 | H99: 7F7C | I99: F09C | J99: 61596 | Q99: 691
A100: 93 | B100: 61597 | C100: F09D | D100: 7F7D | E100: 32637 | F100:  | G100: 32637 | H100: 7F7D | I100: F09D | J100: 61597 | Q100: 691
A101: 94 | B101: 61598 | C101: F09E | D101: 7F7E | E101: 32638 | F101:  | G101: 32638 | H101: 7F7E | I101: F09E | J101: 61598 | Q101: 691
A102: 95 | B102: 61599 | C102: F09F | D102: 8021 | E102: 32801 | F102:  | G102: 32801 | H102: 8021 | I102: F09F | J102: 61599 | Q102: 691
A103: 96 | B103: 61600 | C103: F0A0 | D103: 8022 | E103: 32802 | F103:  | G103: 32802 | H103: 8022 | I103: F0A0 | J103: 61600 | Q103: 691
A104: 97 | B104: 61601 | C104: F0A1 | D104: 8023 | E104: 32803 | F104:  | G104: 32803 | H104: 8023 | I104: F0A1 | J104: 61601 | Q104: 691
A105: 98 | B105: 61602 | C105: F0A2 | D105: 8024 | E105: 32804 | F105:  | G105: 32804 | H105: 8024 | I105: F0A2 | J105: 61602 | Q105: 691
A106: 99 | B106: 61603 | C106: F0A3 | D106: 8025 | E106: 32805 | F106:  | G106: 32805 | H106: 8025 | I106: F0A3 | J106: 61603 | Q106: 691
A107: 100 | B107: 61604 | C107: F0A4 | D107: 8026 | E107: 32806 | F107:  | G107: 32806 | H107: 8026 | I107: F0A4 | J107: 61604 | Q107: 691
A108: 101 | B108: 61605 | C108: F0A5 | D108: 8027 | E108: 32807 | F108:  | G108: 32807 | H108: 8027 | I108: F0A5 | J108: 61605 | Q108: 691
A109: 102 | B109: 61606 | C109: F0A6 | D109: 8028 | E109: 32808 | F109:  | G109: 32808 | H109: 8028 | I109: F0A6 | J109: 61606 | Q109: 691
A110: 103 | B110: 61607 | C110: F0A7 | D110: 8029 | E110: 32809 | F110:  | G110: 32809 | H110: 8029 | I110: F0A7 | J110: 61607 | Q110: 691
A111: 104 | B111: 61608 | C111: F0A8 | D111: 802A | E111: 32810 | F111:  | G111: 32810 | H111: 802A | I111: F0A8 | J111: 61608 | Q111: 691
A112: 105 | B112: 61609 | C112: F0A9 | D112: 802B | E112: 32811 | F112:  | G112: 32811 | H112: 802B | I112: F0A9 | J112: 61609 | Q112: 691
A113: 106 | B113: 61610 | C113: F0AA | D113: 802C | E113: 32812 | F113:  | G113: 32812 | H113: 802C | I113: F0AA | J113: 61610 | Q113: 691
A114: 107 | B114: 61611 | C114: F0AB | D114: 802D | E114: 32813 | F114:  | G114: 32813 | H114: 802D | I114: F0AB | J114: 61611 | Q114: 691
A115: 108 | B115: 61612 | C115: F0AC | D115: 802E | E115: 32814 | F115:  | G115: 32814 | H115: 802E | I115: F0AC | J115: 61612 | Q115: 691
A116: 109 | B116: 61613 | C116: F0AD | D116: 802F | E116: 32815 | F116:  | G116: 32815 | H116: 802F | I116: F0AD | J116: 61613 | Q116: 691
A117: 110 | B117: 61614 | C117: F0AE | D117: 8030 | E117: 32816 | F117:  | G117: 32816 | H117: 8030 | I117: F0AE | J117: 61614 | Q117: 691
A118: 111 | B118: 61615 | C118: F0AF | D118: 8031 | E118: 32817 | F118:  | G118: 32817 | H118: 8031 | I118: F0AF | J118: 61615 | Q118: 691
A119: 112 | B119: 61616 | C119: F0B0 | D119: 8032 | E119: 32818 | F119:  | G119: 32818 | H119: 8032 | I119: F0B0 | J119: 61616 | Q119: 691
A120: 113 | B120: 61617 | C120: F0B1 | D120: 8033 | E120: 32819 | F120:  | G120: 32819 | H120: 8033 | I120: F0B1 | J120: 61617 | K120: =IFERROR(_xludf.unicode(F120),"") ->  | Q120: 691
A121: 114 | B121: 61618 | C121: F0B2 | D121: 8034 | E121: 32820 | F121:  | G121: 32820 | H121: 8034 | I121: F0B2 | J121: 61618 | Q121: 691
A122: 115 | B122: 61619 | C122: F0B3 | D122: 8035 | E122: 32821 | F122:  | G122: 32821 | H122: 8035 | I122: F0B3 | J122: 61619 | Q122: 691
A123: 116 | B123: 61620 | C123: F0B4 | D123: 8036 | E123: 32822 | F123:  | G123: 32822 | H123: 8036 | I123: F0B4 | J123: 61620 | Q123: 691
A124: 117 | B124: 61621 | C124: F0B5 | D124: 8037 | E124: 32823 | F124:  | G124: 32823 | H124: 8037 | I124: F0B5 | J124: 61621 | Q124: 691
A125: 118 | B125: 61622 | C125: F0B6 | D125: 8038 | E125: 32824 | F125:  | G125: 32824 | H125: 8038 | I125: F0B6 | J125: 61622 | Q125: 691
A126: 119 | B126: 61623 | C126: F0B7 | D126: 8039 | E126: 32825 | F126:  | G126: 32825 | H126: 8039 | I126: F0B7 | J126: 61623 | Q126: 691
A127: 120 | B127: 61624 | C127: F0B8 | D127: 803A | E127: 32826 | F127:  | G127: 32826 | H127: 803A | I127: F0B8 | J127: 61624 | Q127: 691
A128: 121 | B128: 61625 | C128: F0B9 | D128: 803B | E128: 32827 | F128:  | G128: 32827 | H128: 803B | I128: F0B9 | J128: 61625 | Q128: 691
A129: 122 | B129: 61626 | C129: F0BA | D129: 803C | E129: 32828 | F129:  | G129: 32828 | H129: 803C | I129: F0BA | J129: 61626 | Q129: 691
A130: 123 | B130: 61627 | C130: F0BB | D130: 803D | E130: 32829 | F130:  | G130: 32829 | H130: 803D | I130: F0BB | J130: 61627 | Q130: 691
A131: 124 | B131: 61628 | C131: F0BC | D131: 803E | E131: 32830 | F131:  | G131: 32830 | H131: 803E | I131: F0BC | J131: 61628 | Q131: 691
A132: 125 | B132: 61629 | C132: F0BD | D132: 803F | E132: 32831 | F132:  | G132: 32831 | H132: 803F | I132: F0BD | J132: 61629 | Q132: 691
A133: 126 | B133: 61630 | C133: F0BE | D133: 8040 | E133: 32832 | F133:  | G133: 32832 | H133: 8040 | I133: F0BE | J133: 61630 | Q133: 691
A134: 127 | B134: 61631 | C134: F0BF | D134: 8041 | E134: 32833 | F134:  | G134: 32833 | H134: 8041 | I134: F0BF | J134: 61631 | Q134: 691
A135: =IF(D135="",A134,A134+1) -> 128 | B135: 61632 | C135: F0C0 | D135: 8042 | E135: 32834 | F135:  | G135: 32834 | H135: 8042 | I135: F0C0 | J135: 61632 | Q135: 691
A136: 129 | B136: 61633 | C136: F0C1 | D136: =SJISTOJIS(C136) -> 8043 | E136: =HEX2DEC(D136) -> 32835 | F136: =IFERROR(CHAR(E136),"範囲外") ->  | G136: =CODE(F136) -> 32835 | H136: =DEC2HEX(G136) -> 8043 | I136: =SJIS_code(F136) -> F0C1 | J136: =HEX2DEC(I136) -> 61633 | L136: =IFERROR(DEC2HEX(K136),"") ->  | P136: =IF(AND(M136="",O136=""),"","○") ->  | Q136: 691
A137: 130 | B137: =B136+1 -> 61634 | C137: =DEC2HEX(B137) -> F0C2 | D137: 8044 | E137: 32836 | F137:  | G137: 32836 | H137: 8044 | I137: F0C2 | J137: 61634 | Q137: 691
A138: 131 | B138: 61635 | C138: F0C3 | D138: 8045 | E138: 32837 | F138:  | G138: 32837 | H138: 8045 | I138: F0C3 | J138: 61635 | Q138: 691
A139: 132 | B139: 61636 | C139: F0C4 | D139: 8046 | E139: 32838 | F139:  | G139: 32838 | H139: 8046 | I139: F0C4 | J139: 61636 | Q139: 691
A140: 133 | B140: 61637 | C140: F0C5 | D140: 8047 | E140: 32839 | F140:  | G140: 32839 | H140: 8047 | I140: F0C5 | J140: 61637 | Q140: 691
A141: 134 | B141: 61638 | C141: F0C6 | D141: 8048 | E141: 32840 | F141:  | G141: 32840 | H141: 8048 | I141: F0C6 | J141: 61638 | Q141: 691
A142: 135 | B142: 61639 | C142: F0C7 | D142: 8049 | E142: 32841 | F142:  | G142: 32841 | H142: 8049 | I142: F0C7 | J142: 61639 | Q142: 691
A143: 136 | B143: 61640 | C143: F0C8 | D143: 804A | E143: 32842 | F143:  | G143: 32842 | H143: 804A | I143: F0C8 | J143: 61640 | Q143: 691
A144: 137 | B144: 61641 | C144: F0C9 | D144: 804B | E144: 32843 | F144:  | G144: 32843 | H144: 804B | I144: F0C9 | J144: 61641 | Q144: 691
A145: 138 | B145: 61642 | C145: F0CA | D145: 804C | E145: 32844 | F145:  | G145: 32844 | H145: 804C | I145: F0CA | J145: 61642 | Q145: 691
A146: 139 | B146: 61643 | C146: F0CB | D146: 804D | E146: 32845 | F146:  | G146: 32845 | H146: 804D | I146: F0CB | J146: 61643 | Q146: 691
A147: 140 | B147: 61644 | C147: F0CC | D147: 804E | E147: 32846 | F147:  | G147: 32846 | H147: 804E | I147: F0CC | J147: 61644 | Q147: 691
A148: 141 | B148: 61645 | C148: F0CD | D148: 804F | E148: 32847 | F148:  | G148: 32847 | H148: 804F | I148: F0CD | J148: 61645 | Q148: 691
A149: 142 | B149: 61646 | C149: F0CE | D149: 8050 | E149: 32848 | F149:  | G149: 32848 | H149: 8050 | I149: F0CE | J149: 61646 | Q149: 691
A150: 143 | B150: 61647 | C150: F0CF | D150: 8051 | E150: 32849 | F150:  | G150: 32849 | H150: 8051 | I150: F0CF | J150: 61647 | Q150: 691
A151: 144 | B151: 61648 | C151: F0D0 | D151: 8052 | E151: 32850 | F151:  | G151: 32850 | H151: 8052 | I151: F0D0 | J151: 61648 | Q151: 691
A152: 145 | B152: 61649 | C152: F0D1 | D152: 8053 | E152: 32851 | F152:  | G152: 32851 | H152: 8053 | I152: F0D1 | J152: 61649 | Q152: 691
A153: 146 | B153: 61650 | C153: F0D2 | D153: 8054 | E153: 32852 | F153:  | G153: 32852 | H153: 8054 | I153: F0D2 | J153: 61650 | Q153: 691
A154: 147 | B154: 61651 | C154: F0D3 | D154: 8055 | E154: 32853 | F154:  | G154: 32853 | H154: 8055 | I154: F0D3 | J154: 61651 | Q154: 691
A155: 148 | B155: 61652 | C155: F0D4 | D155: 8056 | E155: 32854 | F155:  | G155: 32854 | H155: 8056 | I155: F0D4 | J155: 61652 | Q155: 691
A156: 149 | B156: 61653 | C156: F0D5 | D156: 8057 | E156: 32855 | F156:  | G156: 32855 | H156: 8057 | I156: F0D5 | J156: 61653 | Q156: 691
A157: 150 | B157: 61654 | C157: F0D6 | D157: 8058 | E157: 32856 | F157:  | G157: 32856 | H157: 8058 | I157: F0D6 | J157: 61654 | Q157: 691
A158: 151 | B158: 61655 | C158: F0D7 | D158: 8059 | E158: 32857 | F158:  | G158: 32857 | H158: 8059 | I158: F0D7 | J158: 61655 | Q158: 691
A159: 152 | B159: 61656 | C159: F0D8 | D159: 805A | E159: 32858 | F159:  | G159: 32858 | H159: 805A | I159: F0D8 | J159: 61656 | Q159: 691
A160: 153 | B160: 61657 | C160: F0D9 | D160: 805B | E160: 32859 | F160:  | G160: 32859 | H160: 805B | I160: F0D9 | J160: 61657 | Q160: 691
A161: 154 | B161: 61658 | C161: F0DA | D161: 805C | E161: 32860 | F161:  | G161: 32860 | H161: 805C | I161: F0DA | J161: 61658 | Q161: 691
A162: 155 | B162: 61659 | C162: F0DB | D162: 805D | E162: 32861 | F162:  | G162: 32861 | H162: 805D | I162: F0DB | J162: 61659 | Q162: 691
A163: 156 | B163: 61660 | C163: F0DC | D163: 805E | E163: 32862 | F163:  | G163: 32862 | H163: 805E | I163: F0DC | J163: 61660 | Q163: 691
A164: 157 | B164: 61661 | C164: F0DD | D164: 805F | E164: 32863 | F164:  | G164: 32863 | H164: 805F | I164: F0DD | J164: 61661 | Q164: 691
A165: 158 | B165: 61662 | C165: F0DE | D165: 8060 | E165: 32864 | F165:  | G165: 32864 | H165: 8060 | I165: F0DE | J165: 61662 | Q165: 691
A166: 159 | B166: 61663 | C166: F0DF | D166: 8061 | E166: 32865 | F166:  | G166: 32865 | H166: 8061 | I166: F0DF | J166: 61663 | Q166: 691
A167: 160 | B167: 61664 | C167: F0E0 | D167: 8062 | E167: 32866 | F167:  | G167: 32866 | H167: 8062 | I167: F0E0 | J167: 61664 | Q167: 691
A168: 161 | B168: 61665 | C168: F0E1 | D168: 8063 | E168: 32867 | F168:  | G168: 32867 | H168: 8063 | I168: F0E1 | J168: 61665 | Q168: 691
A169: 162 | B169: 61666 | C169: F0E2 | D169: 8064 | E169: 32868 | F169:  | G169: 32868 | H169: 8064 | I169: F0E2 | J169: 61666 | Q169: 691
A170: 163 | B170: 61667 | C170: F0E3 | D170: 8065 | E170: 32869 | F170:  | G170: 32869 | H170: 8065 | I170: F0E3 | J170: 61667 | Q170: 691
A171: 164 | B171: 61668 | C171: F0E4 | D171: 8066 | E171: 32870 | F171:  | G171: 32870 | H171: 8066 | I171: F0E4 | J171: 61668 | Q171: 691
A172: 165 | B172: 61669 | C172: F0E5 | D172: 8067 | E172: 32871 | F172:  | G172: 32871 | H172: 8067 | I172: F0E5 | J172: 61669 | Q172: 691
A173: 166 | B173: 61670 | C173: F0E6 | D173: 8068 | E173: 32872 | F173:  | G173: 32872 | H173: 8068 | I173: F0E6 | J173: 61670 | Q173: 691
A174: 167 | B174: 61671 | C174: F0E7 | D174: 8069 | E174: 32873 | F174:  | G174: 32873 | H174: 8069 | I174: F0E7 | J174: 61671 | Q174: 691
A175: 168 | B175: 61672 | C175: F0E8 | D175: 806A | E175: 32874 | F175:  | G175: 32874 | H175: 806A | I175: F0E8 | J175: 61672 | Q175: 691
A176: 169 | B176: 61673 | C176: F0E9 | D176: 806B | E176: 32875 | F176:  | G176: 32875 | H176: 806B | I176: F0E9 | J176: 61673 | Q176: 691
A177: 170 | B177: 61674 | C177: F0EA | D177: 806C | E177: 32876 | F177:  | G177: 32876 | H177: 806C | I177: F0EA | J177: 61674 | Q177: 691
A178: 171 | B178: 61675 | C178: F0EB | D178: 806D | E178: 32877 | F178:  | G178: 32877 | H178: 806D | I178: F0EB | J178: 61675 | Q178: 691
A179: 172 | B179: 61676 | C179: F0EC | D179: 806E | E179: 32878 | F179:  | G179: 32878 | H179: 806E | I179: F0EC | J179: 61676 | Q179: 691
A180: 173 | B180: 61677 | C180: F0ED | D180: 806F | E180: 32879 | F180:  | G180: 32879 | H180: 806F | I180: F0ED | J180: 61677 | Q180: 691
A181: 174 | B181: 61678 | C181: F0EE | D181: 8070 | E181: 32880 | F181:  | G181: 32880 | H181: 8070 | I181: F0EE | J181: 61678 | Q181: 691
A182: 175 | B182: 61679 | C182: F0EF | D182: 8071 | E182: 32881 | F182:  | G182: 32881 | H182: 8071 | I182: F0EF | J182: 61679 | Q182: 691
A183: 176 | B183: 61680 | C183: F0F0 | D183: 8072 | E183: 32882 | F183:  | G183: 32882 | H183: 8072 | I183: F0F0 | J183: 61680 | Q183: 691
A184: 177 | B184: 61681 | C184: F0F1 | D184: 8073 | E184: 32883 | F184:  | G184: 32883 | H184: 8073 | I184: F0F1 | J184: 61681 | K184: =IFERROR(_xludf.unicode(F184),"") ->  | Q184: 691
A185: 178 | B185: 61682 | C185: F0F2 | D185: 8074 | E185: 32884 | F185:  | G185: 32884 | H185: 8074 | I185: F0F2 | J185: 61682 | Q185: 691
A186: 179 | B186: 61683 | C186: F0F3 | D186: 8075 | E186: 32885 | F186:  | G186: 32885 | H186: 8075 | I186: F0F3 | J186: 61683 | Q186: 691
A187: 180 | B187: 61684 | C187: F0F4 | D187: 8076 | E187: 32886 | F187:  | G187: 32886 | H187: 8076 | I187: F0F4 | J187: 61684 | Q187: 691
A188: 181 | B188: 61685 | C188: F0F5 | D188: 8077 | E188: 32887 | F188:  | G188: 32887 | H188: 8077 | I188: F0F5 | J188: 61685 | Q188: 691
A189: 182 | B189: 61686 | C189: F0F6 | D189: 8078 | E189: 32888 | F189:  | G189: 32888 | H189: 8078 | I189: F0F6 | J189: 61686 | Q189: 691
A190: 183 | B190: 61687 | C190: F0F7 | D190: 8079 | E190: 32889 | F190:  | G190: 32889 | H190: 8079 | I190: F0F7 | J190: 61687 | Q190: 691
A191: 184 | B191: 61688 | C191: F0F8 | D191: 807A | E191: 32890 | F191:  | G191: 32890 | H191: 807A | I191: F0F8 | J191: 61688 | Q191: 691
A192: 185 | B192: 61689 | C192: F0F9 | D192: 807B | E192: 32891 | F192:  | G192: 32891 | H192: 807B | I192: F0F9 | J192: 61689 | Q192: 691
A193: 186 | B193: 61690 | C193: F0FA | D193: 807C | E193: 32892 | F193:  | G193: 32892 | H193: 807C | I193: F0FA | J193: 61690 | Q193: 691
A194: 187 | B194: 61691 | C194: F0FB | D194: 807D | E194: 32893 | F194:  | G194: 32893 | H194: 807D | I194: F0FB | J194: 61691 | Q194: 691
A195: 188 | B195: 61692 | C195: F0FC | D195: 807E | E195: 32894 | F195:  | G195: 32894 | H195: 807E | I195: F0FC | J195: 61692 | Q195: 691
A196: 188 | B196: 61693 | C196: F0FD | F196: 範囲外
A197: 188 | B197: 61694 | C197: F0FE | F197: 範囲外
A198: 188 | B198: 61695 | C198: F0FF | F198: 範囲外
A199: =IF(D199="",A198,A198+1) -> 188 | B199: 61696 | C199: F100 | F199: 範囲外
A200: 188 | B200: 61697 | C200: F101 | F200: 範囲外
... 2302 more rows

Sheet 文字イメージ作成 (hidden)
J1: 2022-05-14T10:18:15 | K1: =IF(J2="","",J2-J1) -> 00:00:09
J2: 2022-05-14T10:18:24
J3: 【CSVデータ使用外字チェックリスト】

Sheet Version_Check (hidden)
B2: 【Office_Version Check】
B4: Version プロパティの 戻り値 | C4: マクロ実行対象の Office
B5: 19.0
B6: 18.0
B7: 17.0 | C7: Office 2019
B8: 16.0 | C8: Office 2016
B9: 15.0 | C9: Office 2013
B10: 14.0 | C10: Office 2010
B11: 12.0 | C11: Office 2007
B12: 11.0 | C12: Office 2003
B13: 10.0 | C13: Office 2002
B14: 9.0 | C14: Office 2000
B15: 8.0 | C15: Office 97
B16: 7.0 | C16: Office 95
B17: 5.0 | C17: Office 5.0
